[Event "Early-Titled-Tuesday-Blitz-April-02-2024"]
[Site "Chess.com"]
[Date "2024.04.02"]
[Round "2"]
[White "wonderfultime"]
[Black "FLYD"]
[Result "1-0"]
[WhiteElo "2969"]
[BlackElo "1910"]
[TimeControl "180+1"]
[EndTime "8:18:27 PDT"]
[Termination "wonderfultime won by checkmate"]

1. d4 {[%clk 0:02:52.6]} 1... Nf6 {[%clk 0:02:58.6]} 2. Nf3 {[%clk 0:02:49]}
2... d5 {[%clk 0:02:58]} 3. Bf4 {[%clk 0:02:47.2]} 3... c5 {[%clk 0:02:56.4]} 4.
c3 {[%clk 0:02:47.3]} 4... Nc6 {[%clk 0:02:56.9]} 5. e3 {[%clk 0:02:47.3]} 5...
Qb6 {[%clk 0:02:57.6]} 6. Qc2 {[%clk 0:02:46.8]} 6... cxd4 {[%clk 0:02:58.1]} 7.
exd4 {[%clk 0:02:47]} 7... Bf5 {[%clk 0:02:58.8]} 8. Qb3 {[%clk 0:02:47.3]} 8...
e6 {[%clk 0:02:54.4]} 9. Nbd2 {[%clk 0:02:47.5]} 9... Be7 {[%clk 0:02:52.6]} 10.
Be2 {[%clk 0:02:47.5]} 10... h6 {[%clk 0:02:50.2]} 11. O-O {[%clk 0:02:47.8]}
11... O-O {[%clk 0:02:49.6]} 12. Rfe1 {[%clk 0:02:48.4]} 12... Ne4 {[%clk
0:02:44.9]} 13. h3 {[%clk 0:02:44]} 13... Bh7 {[%clk 0:02:34.7]} 14. Bf1 {[%clk
0:02:27.7]} 14... g5 {[%clk 0:02:31.3]} 15. Bh2 {[%clk 0:02:25.3]} 15... f5
{[%clk 0:02:27.9]} 16. Bd3 {[%clk 0:02:06.9]} 16... Qxb3 {[%clk 0:02:17.6]} 17.
Nxb3 {[%clk 0:02:05.9]} 17... f4 {[%clk 0:02:14.2]} 18. Nfd2 {[%clk 0:01:40.2]}
18... Nxd2 {[%clk 0:01:53.7]} 19. Bxh7+ {[%clk 0:01:41.1]} 19... Kxh7 {[%clk
0:01:53.8]} 20. Nxd2 {[%clk 0:01:42]} 20... Rf6 {[%clk 0:01:54.1]} 21. Re2
{[%clk 0:01:40.4]} 21... Bd6 {[%clk 0:01:50.5]} 22. Rae1 {[%clk 0:01:41]} 22...
Re8 {[%clk 0:01:50.7]} 23. g3 {[%clk 0:00:58.5]} 23... e5 {[%clk 0:01:22.2]} 24.
dxe5 {[%clk 0:00:58.4]} 24... Nxe5 {[%clk 0:01:19.3]} 25. gxf4 {[%clk
0:00:58.8]} 25... gxf4 {[%clk 0:01:19.3]} 26. Kh1 {[%clk 0:00:55.5]} 26... Rf5
{[%clk 0:00:41.9]} 27. Nb3 {[%clk 0:00:44]} 27... Rg8 {[%clk 0:00:29.8]} 28. Nd4
{[%clk 0:00:29.4]} 28... Rh5 {[%clk 0:00:30]} 29. Rg1 {[%clk 0:00:18.4]} 29...
Rxh3 {[%clk 0:00:18.4]} 30. Rxg8 {[%clk 0:00:16.8]} 30... Kxg8 {[%clk
0:00:19.3]} 31. Kg2 {[%clk 0:00:11.3]} 31... Rh4 {[%clk 0:00:08.9]} 32. f3
{[%clk 0:00:11.6]} 32... Kf7 {[%clk 0:00:03.6]} 33. Nf5 {[%clk 0:00:11.7]} 33...
Rxh2+ {[%clk 0:00:03]} 34. Kxh2 {[%clk 0:00:12.4]} 34... Bc7 {[%clk 0:00:03.5]}
35. Kg2 {[%clk 0:00:11.7]} 35... Kf6 {[%clk 0:00:03]} 36. Nxh6 {[%clk
0:00:11.5]} 36... Kg5 {[%clk 0:00:02.9]} 37. Ng4 {[%clk 0:00:10.6]} 37... Nxg4
{[%clk 0:00:03.3]} 38. fxg4 {[%clk 0:00:11.5]} 38... Kxg4 {[%clk 0:00:04.2]} 39.
Re7 {[%clk 0:00:12.3]} 39... f3+ {[%clk 0:00:03.7]} 40. Kf1 {[%clk 0:00:13]}
40... Bb6 {[%clk 0:00:04.6]} 41. Rxb7 {[%clk 0:00:13]} 41... Kf4 {[%clk
0:00:05]} 42. Re7 {[%clk 0:00:12.3]} 42... Kg3 {[%clk 0:00:03.8]} 43. a4 {[%clk
0:00:10.9]} 43... a5 {[%clk 0:00:03.6]} 44. Re5 {[%clk 0:00:11]} 44... d4 {[%clk
0:00:03.2]} 45. cxd4 {[%clk 0:00:11.7]} 45... Bxd4 {[%clk 0:00:04.1]} 46. Rxa5
{[%clk 0:00:11.5]} 46... Bxb2 {[%clk 0:00:04.7]} 47. Rd5 {[%clk 0:00:11]} 47...
Bc3 {[%clk 0:00:04.8]} 48. a5 {[%clk 0:00:11]} 48... Bf6 {[%clk 0:00:03.2]} 49.
a6 {[%clk 0:00:11.1]} 49... Bh4 {[%clk 0:00:02.6]} 50. a7 {[%clk 0:00:11.1]}
50... f2 {[%clk 0:00:03.5]} 51. a8=Q {[%clk 0:00:10.9]} 51... Kh3 {[%clk
0:00:04.4]} 52. Rd3+ {[%clk 0:00:11.1]} 52... Bg3 {[%clk 0:00:04.9]} 53. Qg2+
{[%clk 0:00:11.7]} 53... Kg4 {[%clk 0:00:05.3]} 54. Rf3 {[%clk 0:00:11.6]} 54...
Kh5 {[%clk 0:00:06.2]} 55. Rxg3 {[%clk 0:00:11.8]} 55... Kh6 {[%clk 0:00:06.6]}
56. Qh2# {[%clk 0:00:12.7]} 1-0

[Event "Early-Titled-Tuesday-Blitz-April-02-2024"]
[Site "Chess.com"]
[Date "2024.04.02"]
[Round "2"]
[White "viviania"]
[Black "Bilan_Danila"]
[Result "1-0"]
[WhiteElo "2892"]
[BlackElo "2606"]
[TimeControl "180+1"]
[EndTime "8:18:29 PDT"]
[Termination "viviania won by resignation"]

1. Nf3 {[%clk 0:02:46.1]} 1... d5 {[%clk 0:02:57.8]} 2. g3 {[%clk 0:02:46.1]}
2... Nf6 {[%clk 0:02:57.8]} 3. Bg2 {[%clk 0:02:46.2]} 3... Bf5 {[%clk
0:02:58.4]} 4. c4 {[%clk 0:02:45]} 4... c6 {[%clk 0:02:57.5]} 5. cxd5 {[%clk
0:02:44.2]} 5... cxd5 {[%clk 0:02:57.2]} 6. Qb3 {[%clk 0:02:44.4]} 6... Qb6
{[%clk 0:02:48.2]} 7. Qxb6 {[%clk 0:02:42.1]} 7... axb6 {[%clk 0:02:49.1]} 8. d3
{[%clk 0:02:40.3]} 8... Bd7 {[%clk 0:02:46.8]} 9. Be3 {[%clk 0:02:32.3]} 9... b5
{[%clk 0:02:43.1]} 10. Nbd2 {[%clk 0:02:30]} 10... Nc6 {[%clk 0:02:36.6]} 11.
Nb3 {[%clk 0:02:20.5]} 11... e5 {[%clk 0:02:07.5]} 12. Bc5 {[%clk 0:02:20.2]}
12... Bxc5 {[%clk 0:01:49]} 13. Nxc5 {[%clk 0:02:18.6]} 13... b6 {[%clk
0:01:49.6]} 14. Nxd7 {[%clk 0:02:13.6]} 14... Kxd7 {[%clk 0:01:46.4]} 15. Kd2
{[%clk 0:02:10.3]} 15... Kd6 {[%clk 0:01:43.9]} 16. Rhc1 {[%clk 0:02:09.9]}
16... Rhc8 {[%clk 0:01:33.4]} 17. Bh3 {[%clk 0:01:38.9]} 17... Rc7 {[%clk
0:01:29]} 18. a3 {[%clk 0:01:39]} 18... Raa7 {[%clk 0:01:14.3]} 19. Kd1 {[%clk
0:01:28.5]} 19... d4 {[%clk 0:00:57.1]} 20. Nd2 {[%clk 0:01:23.6]} 20... g6
{[%clk 0:00:48.8]} 21. Rc2 {[%clk 0:01:09.5]} 21... Na5 {[%clk 0:00:37.5]} 22.
Rac1 {[%clk 0:01:04.6]} 22... Rxc2 {[%clk 0:00:34.7]} 23. Rxc2 {[%clk
0:01:04.8]} 23... Rc7 {[%clk 0:00:35.6]} 24. Rxc7 {[%clk 0:00:58.4]} 24... Kxc7
{[%clk 0:00:35.1]} 25. Bg2 {[%clk 0:00:50.8]} 25... Kd6 {[%clk 0:00:33.9]} 26.
h4 {[%clk 0:00:41.7]} 26... Nc6 {[%clk 0:00:26.4]} 27. Kc2 {[%clk 0:00:34.3]}
27... Ng4 {[%clk 0:00:21.7]} 28. Ne4+ {[%clk 0:00:32.9]} 28... Kc7 {[%clk
0:00:18]} 29. Bf3 {[%clk 0:00:30.8]} 29... f5 {[%clk 0:00:03.4]} 30. Bxg4 {[%clk
0:00:28.1]} 30... fxe4 {[%clk 0:00:04]} 31. dxe4 {[%clk 0:00:24.7]} 31... Kd6
{[%clk 0:00:04.6]} 32. b4 {[%clk 0:00:18.3]} 32... Ne7 {[%clk 0:00:03.3]} 33.
Kd3 {[%clk 0:00:17.5]} 33... Nc6 {[%clk 0:00:02.3]} 34. e3 {[%clk 0:00:15.4]}
34... Ne7 {[%clk 0:00:02.8]} 35. Bh3 {[%clk 0:00:14.8]} 35... dxe3 {[%clk
0:00:02.8]} 36. Kxe3 {[%clk 0:00:14.6]} 36... Nc6 {[%clk 0:00:03]} 37. Bg4
{[%clk 0:00:14.1]} 37... Nd4 {[%clk 0:00:03.9]} 38. Be2 {[%clk 0:00:14]} 38...
Nc2+ {[%clk 0:00:03.9]} 39. Kd2 {[%clk 0:00:13.7]} 39... Nxa3 {[%clk 0:00:04.5]}
40. Kc3 {[%clk 0:00:13.5]} 40... Nb1+ {[%clk 0:00:04]} 41. Kc2 {[%clk
0:00:12.8]} 41... Na3+ {[%clk 0:00:04.4]} 42. Kd3 {[%clk 0:00:08.9]} 42... Nc4
{[%clk 0:00:04.5]} 43. Kc3 {[%clk 0:00:08.7]} 43... Na3 {[%clk 0:00:03.5]} 44.
Bd3 {[%clk 0:00:08.8]} 44... Kc6 {[%clk 0:00:03.5]} 45. Kb3 {[%clk 0:00:08.3]}
45... Nc4 {[%clk 0:00:02.7]} 46. Bxc4 {[%clk 0:00:08.6]} 46... bxc4+ {[%clk
0:00:03.6]} 47. Kxc4 {[%clk 0:00:08.9]} 47... b5+ {[%clk 0:00:04.5]} 48. Kd3
{[%clk 0:00:08.9]} 48... Kd6 {[%clk 0:00:05.4]} 49. Ke3 {[%clk 0:00:08.9]} 49...
Ke6 {[%clk 0:00:06.1]} 50. f4 {[%clk 0:00:08.9]} 50... h5 {[%clk 0:00:06.2]} 51.
Kf3 {[%clk 0:00:08.8]} 51... Kf6 {[%clk 0:00:06.4]} 52. Ke3 {[%clk 0:00:08.7]}
52... Ke6 {[%clk 0:00:06.9]} 53. fxe5 {[%clk 0:00:09]} 53... Kxe5 {[%clk
0:00:07.8]} 54. Kd3 {[%clk 0:00:09.3]} 54... Ke6 {[%clk 0:00:06.7]} 55. Kd4
{[%clk 0:00:09.6]} 55... Kd6 {[%clk 0:00:07.2]} 56. e5+ {[%clk 0:00:09.8]} 56...
Ke6 {[%clk 0:00:08.1]} 57. Ke4 {[%clk 0:00:10.1]} 57... Ke7 {[%clk 0:00:08.9]}
58. Kd5 {[%clk 0:00:10.3]} 58... Kd7 {[%clk 0:00:09.8]} 59. e6+ {[%clk
0:00:10.4]} 59... Ke7 {[%clk 0:00:10.2]} 60. Ke5 {[%clk 0:00:10.8]} 1-0

[Event "Early-Titled-Tuesday-Blitz-April-02-2024"]
[Site "Chess.com"]
[Date "2024.04.02"]
[Round "2"]
[White "valik3504"]
[Black "ValentinDragnev"]
[Result "0-1"]
[WhiteElo "2549"]
[BlackElo "2728"]
[TimeControl "180+1"]
[EndTime "8:18:30 PDT"]
[Termination "ValentinDragnev won by checkmate"]

1. Nf3 {[%clk 0:03:00.9]} 1... d5 {[%clk 0:02:51.3]} 2. c4 {[%clk 0:03:00.6]}
2... d4 {[%clk 0:02:50.5]} 3. g3 {[%clk 0:02:55]} 3... Nc6 {[%clk 0:02:46.7]} 4.
Bg2 {[%clk 0:02:54.4]} 4... e5 {[%clk 0:02:47.4]} 5. d3 {[%clk 0:02:54.7]} 5...
Bb4+ {[%clk 0:02:43.3]} 6. Bd2 {[%clk 0:02:42.7]} 6... a5 {[%clk 0:02:44.2]} 7.
O-O {[%clk 0:02:42.6]} 7... Nf6 {[%clk 0:02:40.1]} 8. a3 {[%clk 0:02:40]} 8...
Be7 {[%clk 0:02:40.2]} 9. Bg5 {[%clk 0:02:25.7]} 9... Nd7 {[%clk 0:02:40.1]} 10.
Bxe7 {[%clk 0:02:25.7]} 10... Qxe7 {[%clk 0:02:41]} 11. Nbd2 {[%clk 0:01:59.6]}
11... O-O {[%clk 0:02:40.3]} 12. Ne1 {[%clk 0:01:55.3]} 12... Nc5 {[%clk
0:02:38.4]} 13. Nb3 {[%clk 0:01:48.7]} 13... Ne6 {[%clk 0:02:38.1]} 14. Nc2
{[%clk 0:01:41.9]} 14... a4 {[%clk 0:02:33.6]} 15. Nd2 {[%clk 0:01:41.9]} 15...
h5 {[%clk 0:02:33]} 16. b4 {[%clk 0:01:16.8]} 16... axb3 {[%clk 0:02:31]} 17.
Nxb3 {[%clk 0:01:17]} 17... h4 {[%clk 0:02:31.6]} 18. Qd2 {[%clk 0:01:12.6]}
18... Ng5 {[%clk 0:02:05.5]} 19. Nb4 {[%clk 0:01:00.4]} 19... h3 {[%clk
0:01:58]} 20. Nxc6 {[%clk 0:00:55.7]} 20... bxc6 {[%clk 0:01:57.7]} 21. Bxc6
{[%clk 0:00:55.6]} 21... Rb8 {[%clk 0:01:25.5]} 22. Na5 {[%clk 0:00:43.2]} 22...
Bg4 {[%clk 0:01:16]} 23. Bd5 {[%clk 0:00:34.8]} 23... Qf6 {[%clk 0:01:09.3]} 24.
f4 {[%clk 0:00:26.8]} 24... Ne6 {[%clk 0:00:45.7]} 25. fxe5 {[%clk 0:00:23.9]}
25... Qg6 {[%clk 0:00:27.2]} 26. Nc6 {[%clk 0:00:23.2]} 26... Rbe8 {[%clk
0:00:27.5]} 27. a4 {[%clk 0:00:15.1]} 27... Nc5 {[%clk 0:00:27.4]} 28. a5 {[%clk
0:00:13.8]} 28... Nb3 {[%clk 0:00:26.8]} 29. Qb2 {[%clk 0:00:10.9]} 29... Nxa1
{[%clk 0:00:27.2]} 30. Rxa1 {[%clk 0:00:11.7]} 30... Bd7 {[%clk 0:00:27.1]} 31.
Nxd4 {[%clk 0:00:09.9]} 31... Rxe5 {[%clk 0:00:26.6]} 32. Nf3 {[%clk 0:00:09.7]}
32... Ree8 {[%clk 0:00:18.4]} 33. a6 {[%clk 0:00:09.7]} 33... c6 {[%clk
0:00:18.4]} 34. Be4 {[%clk 0:00:07.4]} 34... f5 {[%clk 0:00:18.4]} 35. Nh4
{[%clk 0:00:06.1]} 35... Qg5 {[%clk 0:00:16.8]} 36. Bf3 {[%clk 0:00:06.1]} 36...
Qe3+ {[%clk 0:00:14.5]} 37. Kh1 {[%clk 0:00:06.6]} 37... Rb8 {[%clk 0:00:14.9]}
38. Qc1 {[%clk 0:00:05.8]} 38... Qd4 {[%clk 0:00:13]} 39. a7 {[%clk 0:00:05.7]}
39... Ra8 {[%clk 0:00:12.8]} 40. Qa3 {[%clk 0:00:05.8]} 40... Rf7 {[%clk
0:00:08.8]} 41. Ng6 {[%clk 0:00:06.1]} 41... Be8 {[%clk 0:00:07.4]} 42. Ne7+
{[%clk 0:00:06.4]} 42... Kh7 {[%clk 0:00:07.3]} 43. Nxc6 {[%clk 0:00:06.2]}
43... Bxc6 {[%clk 0:00:05.9]} 44. Bxc6 {[%clk 0:00:06.3]} 44... Raxa7 {[%clk
0:00:06.6]} 45. Ba4 {[%clk 0:00:06.1]} 45... Rfe7 {[%clk 0:00:05.7]} 46. Qc1
{[%clk 0:00:04.6]} 46... Qf2 {[%clk 0:00:05.6]} 47. Bc6 {[%clk 0:00:02.8]} 47...
Rxa1 {[%clk 0:00:04]} 48. Qxa1 {[%clk 0:00:03.7]} 48... Rxe2 {[%clk 0:00:04.6]}
49. Qg1 {[%clk 0:00:04.5]} 49... Re1 {[%clk 0:00:04.9]} 50. Qf1 {[%clk
0:00:05.1]} 50... Rxf1# {[%clk 0:00:05]} 0-1

[Event "Early-Titled-Tuesday-Blitz-April-02-2024"]
[Site "Chess.com"]
[Date "2024.04.02"]
[Round "2"]
[White "wqws"]
[Black "Joachim100x"]
[Result "1-0"]
[WhiteElo "2725"]
[BlackElo "2547"]
[TimeControl "180+1"]
[EndTime "8:18:32 PDT"]
[Termination "wqws won on time"]

1. e4 {[%clk 0:03:00.3]} 1... c5 {[%clk 0:03:00]} 2. Nf3 {[%clk 0:03:00.2]} 2...
e6 {[%clk 0:03:00.3]} 3. d4 {[%clk 0:03:00.3]} 3... cxd4 {[%clk 0:03:00.7]} 4.
Nxd4 {[%clk 0:03:01.2]} 4... Bc5 {[%clk 0:03:01.2]} 5. Nb3 {[%clk 0:02:55.6]}
5... Bb6 {[%clk 0:03:01.3]} 6. Nc3 {[%clk 0:02:53.7]} 6... Ne7 {[%clk
0:03:01.2]} 7. e5 {[%clk 0:02:53.8]} 7... Nbc6 {[%clk 0:03:00.9]} 8. Bf4 {[%clk
0:02:53.5]} 8... Ng6 {[%clk 0:03:00.8]} 9. Bg3 {[%clk 0:02:52.2]} 9... Ngxe5
{[%clk 0:03:00.9]} 10. Be2 {[%clk 0:02:52.1]} 10... O-O {[%clk 0:03:00.7]} 11.
O-O {[%clk 0:02:52.5]} 11... f5 {[%clk 0:03:00.9]} 12. Bxe5 {[%clk 0:02:49.3]}
12... Nxe5 {[%clk 0:03:01.1]} 13. Kh1 {[%clk 0:02:48.4]} 13... f4 {[%clk
0:03:00.6]} 14. Qd6 {[%clk 0:02:40.3]} 14... Bc7 {[%clk 0:02:54.4]} 15. Qd4
{[%clk 0:02:39.6]} 15... f3 {[%clk 0:02:53.7]} 16. gxf3 {[%clk 0:02:36.8]} 16...
Nxf3 {[%clk 0:02:49.8]} 17. Bxf3 {[%clk 0:02:36.3]} 17... Rxf3 {[%clk
0:02:49.9]} 18. Rg1 {[%clk 0:02:36.6]} 18... Qe7 {[%clk 0:02:46.1]} 19. Ne4
{[%clk 0:02:25.6]} 19... Rh3 {[%clk 0:01:51.7]} 20. Rg2 {[%clk 0:02:15.9]} 20...
d5 {[%clk 0:01:30.8]} 21. Rag1 {[%clk 0:02:09.6]} 21... Rxh2+ {[%clk 0:01:09.2]}
22. Rxh2 {[%clk 0:02:08.6]} 22... Bxh2 {[%clk 0:01:08.8]} 23. Nf6+ {[%clk
0:02:05.2]} 23... Kh8 {[%clk 0:01:06.7]} 24. Nxd5 {[%clk 0:02:03.3]} 24... exd5
{[%clk 0:00:58.8]} 25. Kxh2 {[%clk 0:02:03.4]} 25... Bf5 {[%clk 0:00:55.9]} 26.
c3 {[%clk 0:01:54.9]} 26... Be4 {[%clk 0:00:52.6]} 27. Rg4 {[%clk 0:01:37.3]}
27... Rf8 {[%clk 0:00:51.6]} 28. Qe3 {[%clk 0:01:05.3]} 28... Qe5+ {[%clk
0:00:48.6]} 29. Rg3 {[%clk 0:01:00.3]} 29... Qf6 {[%clk 0:00:39.3]} 30. f3
{[%clk 0:00:57.2]} 30... Bxf3 {[%clk 0:00:36.2]} 31. Nd4 {[%clk 0:00:57]} 31...
Be4 {[%clk 0:00:33.8]} 32. a4 {[%clk 0:00:33.2]} 32... Qh4+ {[%clk 0:00:32.8]}
33. Rh3 {[%clk 0:00:32.1]} 33... Rf2+ {[%clk 0:00:28.2]} 34. Kg1 {[%clk
0:00:31.8]} 34... Rg2+ {[%clk 0:00:28.2]} 35. Kf1 {[%clk 0:00:31.2]} 35... Qf6+
{[%clk 0:00:27.2]} 36. Rf3 {[%clk 0:00:28.5]} 36... Qe7 {[%clk 0:00:01.9]} 37.
Kxg2 {[%clk 0:00:22.8]} 37... Bxf3+ {[%clk 0:00:02.2]} 38. Kxf3 {[%clk
0:00:22.5]} 38... Qd7 {[%clk 0:00:02.4]} 39. Qf4 {[%clk 0:00:20.6]} 39... h6
{[%clk 0:00:01.9]} 40. Qb8+ {[%clk 0:00:20.3]} 40... Kh7 {[%clk 0:00:01.9]} 41.
Qxa7 {[%clk 0:00:20.7]} 41... Qf7+ {[%clk 0:00:01.4]} 42. Ke3 {[%clk 0:00:21]}
42... Qe7+ {[%clk 0:00:01.8]} 43. Kd3 {[%clk 0:00:20.6]} 43... Qe4+ {[%clk
0:00:02]} 44. Kd2 {[%clk 0:00:21.2]} 44... Qg2+ {[%clk 0:00:02.2]} 45. Kc1
{[%clk 0:00:21.7]} 45... Qf1+ {[%clk 0:00:01.8]} 46. Kc2 {[%clk 0:00:22.2]}
46... Qf2+ {[%clk 0:00:01.8]} 47. Kb3 {[%clk 0:00:22.7]} 47... Qf7 {[%clk
0:00:01.8]} 48. a5 {[%clk 0:00:22.1]} 48... Qc7 {[%clk 0:00:01.9]} 49. Qb6
{[%clk 0:00:20.5]} 49... Qc4+ {[%clk 0:00:01.9]} 50. Ka3 {[%clk 0:00:21]} 50...
h5 {[%clk 0:00:02.8]} 51. Qxb7 {[%clk 0:00:19.9]} 51... h4 {[%clk 0:00:02.8]}
52. Ne6 {[%clk 0:00:19.9]} 52... Qg4 {[%clk 0:00:01.8]} 53. Qxd5 {[%clk
0:00:19.5]} 53... h3 {[%clk 0:00:01.8]} 54. Qe4+ {[%clk 0:00:19.1]} 1-0

[Event "Early-Titled-Tuesday-Blitz-April-02-2024"]
[Site "Chess.com"]
[Date "2024.04.02"]
[Round "2"]
[White "NastyaHn"]
[Black "FMStan15"]
[Result "1-0"]
[WhiteElo "2437"]
[BlackElo "2105"]
[TimeControl "180+1"]
[EndTime "8:18:35 PDT"]
[Termination "NastyaHn won on time"]

1. Nc3 {[%clk 0:02:59.5]} 1... Nf6 {[%clk 0:02:58.4]} 2. e4 {[%clk 0:02:59.3]}
2... d6 {[%clk 0:02:58.6]} 3. d4 {[%clk 0:02:59]} 3... Nbd7 {[%clk 0:02:58.1]}
4. f4 {[%clk 0:02:58.8]} 4... e5 {[%clk 0:02:57.6]} 5. Nf3 {[%clk 0:02:57.8]}
5... exd4 {[%clk 0:02:54.6]} 6. Nxd4 {[%clk 0:02:57.8]} 6... g6 {[%clk
0:02:53.1]} 7. Be2 {[%clk 0:02:57.4]} 7... Bg7 {[%clk 0:02:53.4]} 8. O-O {[%clk
0:02:57.4]} 8... O-O {[%clk 0:02:53.6]} 9. Be3 {[%clk 0:02:54.9]} 9... Nc5
{[%clk 0:02:53.4]} 10. Bf3 {[%clk 0:02:34.2]} 10... Re8 {[%clk 0:02:51.9]} 11.
e5 {[%clk 0:02:28.4]} 11... dxe5 {[%clk 0:02:48]} 12. Nc6 {[%clk 0:02:25.3]}
12... Qxd1 {[%clk 0:02:39.2]} 13. Raxd1 {[%clk 0:02:24.6]} 13... e4 {[%clk
0:02:31.6]} 14. Be2 {[%clk 0:01:22.8]} 14... Ne6 {[%clk 0:02:15.1]} 15. Ne5
{[%clk 0:01:18]} 15... c6 {[%clk 0:02:04]} 16. g4 {[%clk 0:01:12.3]} 16... Rd8
{[%clk 0:01:57.2]} 17. Bc4 {[%clk 0:00:52]} 17... Nd7 {[%clk 0:01:36.6]} 18.
Nxf7 {[%clk 0:00:35.3]} 18... Kxf7 {[%clk 0:01:35.6]} 19. f5 {[%clk 0:00:35.1]}
19... Kg8 {[%clk 0:01:27.1]} 20. fxe6 {[%clk 0:00:31.4]} 20... Kh8 {[%clk
0:01:23]} 21. exd7 {[%clk 0:00:29.6]} 21... Bxd7 {[%clk 0:01:22.7]} 22. h3
{[%clk 0:00:21.5]} 22... h5 {[%clk 0:01:20.9]} 23. gxh5 {[%clk 0:00:20.1]} 23...
Bxh3 {[%clk 0:01:20.1]} 24. Rxd8+ {[%clk 0:00:19.7]} 24... Rxd8 {[%clk
0:01:18.4]} 25. Rf7 {[%clk 0:00:17.9]} 25... gxh5 {[%clk 0:01:10]} 26. Rxb7
{[%clk 0:00:17]} 26... Be5 {[%clk 0:00:52.2]} 27. Rxa7 {[%clk 0:00:09.4]} 27...
Bg4 {[%clk 0:00:51.9]} 28. Nxe4 {[%clk 0:00:05.7]} 28... Rd1+ {[%clk 0:00:47.6]}
29. Kg2 {[%clk 0:00:05.5]} 29... Re1 {[%clk 0:00:37.8]} 30. Kf2 {[%clk
0:00:05.2]} 30... Rb1 {[%clk 0:00:34.4]} 31. Ra8+ {[%clk 0:00:05.3]} 31... Kg7
{[%clk 0:00:33.7]} 32. b3 {[%clk 0:00:05.2]} 32... Rb2 {[%clk 0:00:32.3]} 33.
Ra7+ {[%clk 0:00:05.1]} 33... Kh8 {[%clk 0:00:30]} 34. Bd3 {[%clk 0:00:05.5]}
34... Bd1 {[%clk 0:00:28.2]} 35. Ng5 {[%clk 0:00:05.4]} 35... Bxc2 {[%clk
0:00:24.6]} 36. Bxc2 {[%clk 0:00:04.6]} 36... Rxc2+ {[%clk 0:00:24.4]} 37. Kf3
{[%clk 0:00:05.2]} 37... h4 {[%clk 0:00:19.7]} 38. Nf7+ {[%clk 0:00:05.1]} 38...
Kg7 {[%clk 0:00:18.5]} 39. Nxe5+ {[%clk 0:00:05.3]} 39... Kf6 {[%clk 0:00:18.7]}
40. Ng4+ {[%clk 0:00:05.3]} 40... Kf5 {[%clk 0:00:19]} 41. Rf7+ {[%clk
0:00:05.1]} 41... Ke6 {[%clk 0:00:18.7]} 42. Rf6+ {[%clk 0:00:05.5]} 42... Kd7
{[%clk 0:00:18.4]} 43. Rh6 {[%clk 0:00:04.7]} 43... Rxa2 {[%clk 0:00:17.1]} 44.
Rxh4 {[%clk 0:00:04.9]} 44... Ra3 {[%clk 0:00:16.2]} 45. b4 {[%clk 0:00:05]}
45... Rb3 {[%clk 0:00:15.5]} 46. Rh7+ {[%clk 0:00:02.5]} 46... Ke6 {[%clk
0:00:13.5]} 47. Rh6+ {[%clk 0:00:02.9]} 47... Kf7 {[%clk 0:00:08.1]} 48. Rxc6
{[%clk 0:00:02.6]} 48... Rxb4 {[%clk 0:00:06.6]} 49. Ne5+ {[%clk 0:00:03.2]}
49... Kg7 {[%clk 0:00:05.3]} 50. Bf4 {[%clk 0:00:03.8]} 50... Rb3+ {[%clk
0:00:04.9]} 51. Kg4 {[%clk 0:00:04.2]} 51... Rb4 {[%clk 0:00:03.8]} 52. Kf5
{[%clk 0:00:04.6]} 52... Rb5 {[%clk 0:00:03.3]} 53. Rc7+ {[%clk 0:00:04.9]}
53... Kf8 {[%clk 0:00:03]} 54. Bg5 {[%clk 0:00:04.2]} 1-0